fUSD/lending_fUSD_20260607
["ID","MTS","AMOUNT","RATE_DAILY","PERIOD"]
[424350041,1780779042000,-500.0,0.00014999,2]
[424350042,1780779042000,-500.0,0.00014999,2]
[424350059,1780779042000,-2080.68023042,0.00015,2]
[424350060,1780779042000,-8099.05402124,0.00015,2]
[424350057,1780779042000,-300.0,0.00014999,2]
[424350061,1780779042000,-11221473.88769077,0.00015,2]
[424350058,1780779042000,-6041346.44172982,0.00015,2]
[424350056,1780779042000,-666.0,0.00014999,2]
[424350055,1780779042000,-300.0,0.00014999,2]
[424350045,1780779042000,-500.0,0.00014999,2]
[424350053,1780779042000,-300.0,0.00014999,2]
[424350052,1780779042000,-300.0,0.00014999,2]
[424350051,1780779042000,-300.0,0.00014999,2]
[424350054,1780779042000,-666.0,0.00014999,2]
[424350049,1780779042000,-300.0,0.00014999,2]
[424350032,1780779042000,-500.0,0.00014999,2]
[424350050,1780779042000,-666.0,0.00014999,2]
[424350046,1780779042000,-500.0,0.00014999,2]
[424350043,1780779042000,-500.0,0.00014999,2]
[424350033,1780779042000,-500.0,0.00014999,2]
[424350036,1780779042000,-500.0,0.00014999,2]
[424350035,1780779042000,-500.0,0.00014999,2]
[424350038,1780779042000,-500.0,0.00014999,2]
[424350048,1780779042000,-666.0,0.00014999,2]
[424350040,1780779042000,-500.0,0.00014999,2]
[424350031,1780779042000,-500.0,0.00014999,2]
[424350037,1780779042000,-500.0,0.00014999,2]
[424350074,1780779042000,-364.65883383,0.00015,2]
[424350039,1780779042000,-500.0,0.00014999,2]
[424350044,1780779042000,-500.0,0.00014999,2]
[424350047,1780779042000,-300.0,0.00014999,2]
[424350034,1780779042000,-500.0,0.00014999,2]
[424350075,1780779043000,-1483.57598021,0.00015,2]
[424350076,1780779043000,-5333.6184774,0.00015,2]
[424350077,1780779043000,-18854.93765589,0.00015,2]
[424350078,1780779043000,-570.72982862,0.00015,2]
[424350080,1780779043000,-444.28906147,0.00014073,2]
[424350081,1780779043000,-1403.67524383,0.00015,2]
[424350082,1780779043000,-3450.14539291,0.00015,2]
[424350079,1780779043000,-21963.345009,0.00015,2]
[424350095,1780779046000,-1863.09959973,0.00015,2]
[424350093,1780779046000,-310.546,0.00015,2]
[424350094,1780779046000,-2645.76287893,0.00015,2]
[424350092,1780779046000,-910.07126,0.00015,2]
[424350091,1780779046000,-4224.82065327,0.00015,2]
[424350089,1780779046000,-1469.09908381,0.00015,2]
[424350769,1780780232000,-1548.71958103,0.000114,2]
[424350768,1780780232000,-752.20507608,0.000114,2]
[424350771,1780780232000,-305.10959667,0.00011496,2]
[424350770,1780780232000,-447.28041897,0.00011496,2]
[424350778,1780780238000,-337.69617652,0.00011496,2]
[424350784,1780780240000,-150.0,0.00012593,2]
[424350781,1780780240000,-237.79043934,0.00012329,2]
[424350790,1780780240000,-500.0,0.00013191,2]
[424350782,1780780240000,-150.38,0.00012458,2]
[424350787,1780780240000,-500.0,0.00012893,2]
[424350786,1780780240000,-166.09,0.00012872,2]
[424350785,1780780240000,-500.0,0.00012822,2]
[424350796,1780780240000,-389.98231301,0.00013192,2]
[424350789,1780780240000,-500.0,0.00013068,2]
[424350788,1780780240000,-237.79043934,0.00012997,2]
[424350791,1780780240000,-500.0,0.00013191,2]
[424350792,1780780240000,-176.16322763,0.00013191,2]
[424350794,1780780240000,-450.0,0.00013192,2]
[424350793,1780780240000,-443.0,0.00013192,2]
[424350795,1780780240000,-442.0,0.00013192,2]
[424350783,1780780240000,-731.15,0.00012478,2]
[424350797,1780780241000,-59.01768699,0.00013192,2]
[424350805,1780780241000,-448.0,0.00013192,2]
[424350798,1780780241000,-442.0,0.00013192,2]
[424350809,1780780241000,-423.16519489,0.00013192,2]
[424350800,1780780241000,-450.0,0.00013192,2]
[424350806,1780780241000,-444.0,0.00013192,2]
[424350801,1780780241000,-445.0,0.00013192,2]
[424350807,1780780241000,-453.0,0.00013192,2]
[424350804,1780780241000,-444.0,0.00013192,2]
[424350799,1780780241000,-450.0,0.00013192,2]
[424350808,1780780241000,-451.0,0.00013192,2]
[424350803,1780780241000,-451.0,0.00013192,2]
[424350802,1780780241000,-443.0,0.00013192,2]
[424350816,1780780243000,-317.09353291,0.00013192,2]
[424350814,1780780243000,-26.83480511,0.00013192,2]
[424350815,1780780243000,-442.0,0.00013192,2]
[424350923,1780780246000,-130.90646709,0.00013192,2]
[424350924,1780780246000,-447.0,0.00013192,2]
[424350925,1780780246000,-110.65353291,0.00013192,2]
[424350931,1780780705000,4123.0,0.00029041,120]
[424350962,1780781432000,-116.12261284,9.998e-05,2]
[424350960,1780781432000,-223.44818711,9.9e-05,2]
[424350959,1780781432000,-518.10160304,9.9e-05,2]
[424350963,1780781432000,-33.87738716,9.998e-05,2]
[424350961,1780781432000,-159.52896614,9.9e-05,2]
[424350965,1780781432000,-323.9956622,0.0001,2]
[424350967,1780781432000,-626.258,0.00010486,2]
[424350966,1780781432000,-215.80795776,0.00010016,2]
[424350968,1780781432000,-33.93838004,0.00010486,2]
[424350964,1780781432000,-259.60417613,0.0001,2]
[424351011,1780781438000,-370.64954453,0.00011166,2]
[424351016,1780781438000,-155.09,0.00011373,2]
[424351012,1780781438000,-205.91641363,0.00011166,2]
[424351018,1780781438000,-2000.0,0.00011419,2]
[424351017,1780781438000,-11704.02071928,0.00011377,2]
[424351015,1780781438000,-15000.38414706,0.00011247,2]
[424351021,1780781438000,-311.00234302,0.00011703,2]
[424351020,1780781438000,-500.0,0.00011644,2]
[424351022,1780781438000,-15000.38414706,0.00011703,2]
[424351023,1780781438000,-2400.0,0.00011719,2]
[424351025,1780781438000,-1469.31,0.00011786,2]
[424351026,1780781438000,-500.0,0.00011836,2]
[424351027,1780781438000,-5646.77,0.00011842,2]
[424351019,1780781438000,-2400.0,0.00011433,2]
[424351013,1780781438000,-413.02343187,0.00011166,2]
[424351001,1780781438000,-406.82846496,0.00010699,2]
[424351008,1780781438000,-11704.0207193,0.000109,2]
[424350996,1780781438000,-500.0,0.00010699,2]
[424350995,1780781438000,-155.94830907,0.00010486,2]
[424350997,1780781438000,-475.57846716,0.00010699,2]
[424351000,1780781438000,-500.0,0.00010699,2]
[424350998,1780781438000,-24.42153284,0.00010699,2]
[424351028,1780781438000,-11704.02071928,0.00011964,2]
[424351014,1780781438000,-311.00234302,0.00011247,2]
[424350999,1780781438000,-359.12316203,0.00010699,2]
[424351010,1780781438000,-311.00234311,0.00011099,2]
[424351004,1780781438000,-2440.24,0.000107,2]
[424351002,1780781438000,-179.55898624,0.00010699,2]
[424351005,1780781438000,-1091.45281,0.000107,2]
[424351006,1780781438000,-607184.34923274,0.000107,2]
[424351007,1780781438000,-250.0,0.0001089,2]
[424351003,1780781438000,-968.22097664,0.000107,2]
[424351031,1780781438000,-155.09,0.00012005,2]
[424351009,1780781438000,-15000.38414707,0.00011099,2]
[424351030,1780781438000,-2400.0,0.00012005,2]
[424351059,1780781438000,-452.0,0.00013192,2]
[424351052,1780781438000,-2000.0,0.00012846,2]
[424351056,1780781438000,-15000.38414706,0.00013073,2]
[424351062,1780781438000,-457.0,0.00013192,2]
[424351058,1780781438000,-342.34646709,0.00013192,2]
[424351060,1780781438000,-451.0,0.00013192,2]
[424351050,1780781438000,-300.0,0.000127,4]
[424351054,1780781438000,-1100.0,0.000129,4]
[424351053,1780781438000,-387.58055079,0.00012849,2]
[424351055,1780781438000,-311.00234302,0.00013073,2]
[424351057,1780781438000,-11704.02071928,0.00013139,2]
[424351051,1780781438000,-700.0,0.000128,4]
[424351063,1780781438000,-452.0,0.00013192,2]
[424351029,1780781438000,-500.0,0.00011973,2]
[424351061,1780781438000,-457.0,0.00013192,2]
[424351048,1780781438000,-155.09,0.00012637,2]
[424351064,1780781438000,-451.0,0.00013192,2]
[424351045,1780781438000,-2400.0,0.00012576,2]
[424351038,1780781438000,-500.0,0.00012466,2]
[424351036,1780781438000,-2400.0,0.00012291,2]
[424351032,1780781438000,-311.00234302,0.0001216,2]
[424351035,1780781438000,-500.0,0.00012274,2]
[424351037,1780781438000,-250.0,0.00012346,2]
[424351044,1780781438000,-167.96129714,0.00012575,2]
[424351042,1780781438000,-178.3428295,0.00012575,2]
[424351033,1780781438000,-15000.38414706,0.0001216,2]
[424351039,1780781438000,-11704.02071928,0.00012551,2]
[424351049,1780781438000,-271.05383161,0.00012684,2]
[424351041,1780781438000,-500.0,0.00012575,2]
[424351047,1780781438000,-15000.38414706,0.00012617,2]
[424351024,1780781438000,-500.0,0.00011753,2]
[424351040,1780781438000,-150.0,0.00012569,2]
[424351043,1780781438000,-891.71414752,0.00012575,2]
[424351046,1780781438000,-311.00234302,0.00012617,2]
[424351100,1780781439000,-150.0,0.00013488,2]
[424351109,1780781439000,-150.0,0.0001352,2]
[424351105,1780781439000,-458.0,0.00013497,2]
[424351106,1780781439000,-337.3653641,0.00013503,2]
[424351111,1780781439000,-15000.38414706,0.0001353,2]
[424351104,1780781439000,-458.0,0.00013497,2]
[424351102,1780781439000,-337.3653641,0.00013488,2]
[424351112,1780781439000,-337.3653641,0.00013533,2]
[424351103,1780781439000,-150.0,0.00013488,2]
[424351095,1780781439000,-150.0,0.00013488,2]
[424351099,1780781439000,-150.0,0.00013488,2]
[424351110,1780781439000,-311.00234302,0.0001353,2]
[424351114,1780781439000,-150.0,0.00013537,2]
[424351113,1780781439000,-231.93487573,0.00013537,2]
[424351119,1780781439000,-337.3653641,0.00013563,2]
[424351107,1780781439000,-150.0,0.00013512,2]
[424351115,1780781439000,-150.0,0.00013538,2]
[424351117,1780781439000,-150.0,0.00013553,2]
[424351118,1780781439000,-150.0,0.00013561,2]
[424351120,1780781439000,-337.3653641,0.00013578,2]
[424351122,1780781439000,-150.0,0.00013585,2]
[424351126,1780781439000,-326.87206674,0.00013599,2]
[424351127,1780781439000,-337.3653641,0.00013609,2]
[424351125,1780781439000,-337.3653641,0.00013594,2]
[424351121,1780781439000,-150.0,0.00013581,2]
[424351124,1780781439000,-150.0,0.00013588,2]
[424351123,1780781439000,-150.0,0.00013586,2]
[424351116,1780781439000,-337.3653641,0.00013548,2]
[424351108,1780781439000,-337.3653641,0.00013518,2]
[424351094,1780781439000,-889.93805498,0.00013481,2]
[424351084,1780781439000,-2000.0,0.00013297,2]
[424351098,1780781439000,-150.0,0.00013488,2]
[424351065,1780781439000,-453.0,0.00013192,2]
[424351073,1780781439000,-3147.943,0.00013197,2]
[424351066,1780781439000,-451.0,0.00013192,2]
[424351072,1780781439000,-2486.8746,0.00013197,2]
[424351071,1780781439000,-444.0,0.00013192,2]
[424351069,1780781439000,-452.0,0.00013192,2]
[424351067,1780781439000,-445.0,0.00013192,2]
[424351068,1780781439000,-442.0,0.00013192,2]
[424351074,1780781439000,-247.52001284,0.00013197,2]
[424351070,1780781439000,-457.0,0.00013192,2]
[424351075,1780781439000,-889.938055,0.00013197,2]
[424351076,1780781439000,-166.66,0.00013207,2]
[424351077,1780781439000,-539.0,0.00013233,2]
[424351083,1780781439000,-6315.0,0.00013297,5]
[424351085,1780781439000,-1500000.0,0.00013297,2]
[424351079,1780781439000,-155.09,0.00013269,2]
[424351087,1780781439000,-447.0,0.00013306,2]
[424351078,1780781439000,-361.0,0.0001326,2]
[424351086,1780781439000,-33261.1868,0.00013297,2]
[424351080,1780781439000,-517.16101474,0.00013287,2]
[424351088,1780781439000,-500.0,0.0001337,2]
[424351081,1780781439000,-1000.0,0.00013297,2]
[424351082,1780781439000,-6328.0,0.00013297,5]
[424351089,1780781439000,-168.147157,0.00013381,2]
[424351090,1780781439000,-179.416749,0.00013381,2]
[424351096,1780781439000,-150.0,0.00013488,2]
[424351097,1780781439000,-150.0,0.00013488,2]
[424351092,1780781439000,-4087.251,0.00013396,2]
[424351091,1780781439000,-178.3428295,0.00013384,2]
[424351093,1780781439000,-280.778,0.00013396,2]
[424351136,1780781439000,-337.3653641,0.00013654,2]
[424351101,1780781439000,-150.0,0.00013488,2]
[424351140,1780781439000,-150.0,0.00013683,2]
[424351160,1780781439000,-500.0,0.00013698,2]
[424351162,1780781439000,-500.0,0.00013698,2]
[424351159,1780781439000,-500.0,0.00013698,2]
[424351168,1780781439000,-721.83,0.00013698,2]
[424351176,1780781439000,-500.45399039,0.00013698,2]
[424351177,1780781439000,-500.0,0.00013698,2]
[424351167,1780781439000,-500.0,0.00013698,2]
[424351171,1780781439000,-500.0,0.00013698,2]
[424351169,1780781439000,-500.0,0.00013698,2]
[424351179,1780781439000,-500.0,0.00013698,2]
[424351172,1780781439000,-504.13525177,0.00013698,2]
[424351170,1780781439000,-500.0,0.00013698,2]
[424351178,1780781439000,-500.0,0.00013698,2]
[424351174,1780781439000,-500.0,0.00013698,2]
[424351175,1780781439000,-500.0,0.00013698,2]
[424351173,1780781439000,-517.63739233,0.00013698,2]
[424351180,1780781439000,-662.8,0.00013698,2]
[424351190,1780781439000,-605.94,0.00013698,2]
[424351189,1780781439000,-605.94,0.00013698,2]
[424351191,1780781439000,-605.94,0.00013698,2]
[424351186,1780781439000,-662.8,0.00013698,2]
[424351185,1780781439000,-500.0,0.00013698,2]
[424351182,1780781439000,-662.8,0.00013698,2]
[424351187,1780781439000,-662.8,0.00013698,2]
[424351181,1780781439000,-500.0,0.00013698,2]
[424351184,1780781439000,-662.8,0.00013698,2]
[424351183,1780781439000,-500.0,0.00013698,2]
[424351188,1780781439000,-662.8,0.00013698,2]
[424351192,1780781439000,-500.0,0.00013698,2]
[424351158,1780781439000,-500.0,0.00013698,2]
[424351161,1780781439000,-640.77,0.00013698,2]
[424351137,1780781439000,-150.0,0.0001366,2]
[424351154,1780781439000,-500.0,0.00013698,2]
[424351157,1780781439000,-500.0,0.00013698,2]
[424351138,1780781439000,-337.3653641,0.00013669,2]
[424351128,1780781439000,-150.0,0.00013611,2]
[424351139,1780781439000,-150.0,0.00013675,2]
[424351130,1780781439000,-150.0,0.00013618,2]
[424351129,1780781439000,-150.0,0.00013613,2]
[424351131,1780781439000,-337.3653641,0.00013624,2]
[424351133,1780781439000,-150.0,0.00013638,2]
[424351132,1780781439000,-150.0,0.00013635,2]
[424351134,1780781439000,-337.3653641,0.00013639,2]
[424351141,1780781439000,-150.0,0.00013684,2]
[424351149,1780781439000,-500.0,0.00013698,2]
[424351144,1780781439000,-580.8261853,0.00013698,2]
[424351145,1780781439000,-500.0,0.00013698,2]
[424351135,1780781439000,-150.0,0.00013651,2]
[424351146,1780781439000,-500.0,0.00013698,2]
[424351150,1780781439000,-500.0,0.00013698,2]
[424351166,1780781439000,-500.0,0.00013698,2]
[424351156,1780781439000,-500.0,0.00013698,2]
[424351165,1780781439000,-500.0,0.00013698,2]
[424351155,1780781439000,-598.93,0.00013698,2]
[424351152,1780781439000,-500.0,0.00013698,2]
[424351163,1780781439000,-500.0,0.00013698,2]
[424351164,1780781439000,-500.0,0.00013698,2]
[424351147,1780781439000,-500.0,0.00013698,2]
[424351148,1780781439000,-500.0,0.00013698,2]
[424351143,1780781439000,-150.0,0.00013687,2]
[424351142,1780781439000,-337.3653641,0.00013684,2]
[424351151,1780781439000,-500.0,0.00013698,2]
[424351153,1780781439000,-500.0,0.00013698,2]
[424351232,1780781440000,-500.0,0.00013698,2]
[424351241,1780781440000,-500.0,0.00013698,2]
[424351235,1780781440000,-514.78,0.00013698,2]
[424351233,1780781440000,-500.0,0.00013698,2]
[424351239,1780781440000,-514.78,0.00013698,2]
[424351222,1780781440000,-500.0,0.00013698,2]
[424351231,1780781440000,-500.0,0.00013698,2]
[424351230,1780781440000,-500.0,0.00013698,2]
[424351223,1780781440000,-500.0,0.00013698,2]
[424351228,1780781440000,-500.0,0.00013698,2]
[424351226,1780781440000,-500.0,0.00013698,2]
[424351243,1780781440000,-600.14,0.00013698,2]
[424351240,1780781440000,-514.78,0.00013698,2]
[424351242,1780781440000,-502.77238855,0.00013698,2]
[424351253,1780781440000,-200.0,0.00013699,2]
[424351238,1780781440000,-514.78,0.00013698,2]
[424351236,1780781440000,-514.78,0.00013698,2]
[424351237,1780781440000,-514.78,0.00013698,2]
[424351244,1780781440000,-600.14,0.00013698,2]
[424351246,1780781440000,-600.14,0.00013698,2]
[424351247,1780781440000,-600.14,0.00013698,2]
[424351245,1780781440000,-600.14,0.00013698,2]
[424351249,1780781440000,-600.14,0.00013698,2]
[424351248,1780781440000,-600.14,0.00013698,2]
[424351250,1780781440000,-600.14,0.00013698,2]
[424351252,1780781440000,-600.14,0.00013698,2]
[424351254,1780781440000,-166.66,0.00013699,2]
[424351256,1780781440000,-3923.55,0.00013699,2]
[424351218,1780781440000,-500.0,0.00013698,2]
[424351234,1780781440000,-500.0,0.00013698,2]
[424351224,1780781440000,-500.0,0.00013698,2]
[424351205,1780781440000,-500.0,0.00013698,2]
[424351229,1780781440000,-500.0,0.00013698,2]
[424351251,1780781440000,-600.14,0.00013698,2]
[424351194,1780781440000,-605.94,0.00013698,2]
[424351195,1780781440000,-500.0,0.00013698,2]
[424351197,1780781440000,-500.0,0.00013698,2]
[424351199,1780781440000,-500.0,0.00013698,2]
[424351203,1780781440000,-500.0,0.00013698,2]
[424351201,1780781440000,-500.0,0.00013698,2]
[424351202,1780781440000,-500.0,0.00013698,2]
[424351200,1780781440000,-500.0,0.00013698,2]
[424351198,1780781440000,-605.94,0.00013698,2]
[424351193,1780781440000,-500.0,0.00013698,2]
[424351204,1780781440000,-500.0,0.00013698,2]
[424351196,1780781440000,-605.94,0.00013698,2]
[424351206,1780781440000,-500.0,0.00013698,2]
[424351208,1780781440000,-500.0,0.00013698,2]
[424351216,1780781440000,-500.0,0.00013698,2]
[424351215,1780781440000,-500.0,0.00013698,2]
[424351210,1780781440000,-159.01048571,0.00013698,2]
[424351212,1780781440000,-500.0,0.00013698,2]
[424351214,1780781440000,-500.0,0.00013698,2]
[424351209,1780781440000,-500.0,0.00013698,2]
[424351207,1780781440000,-500.0,0.00013698,2]
[424351213,1780781440000,-457.12873569,0.00013698,2]
[424351211,1780781440000,-500.0,0.00013698,2]
[424351217,1780781440000,-500.0,0.00013698,2]
[424351219,1780781440000,-500.0,0.00013698,2]
[424351220,1780781440000,-500.0,0.00013698,2]
[424351225,1780781440000,-500.0,0.00013698,2]
[424351221,1780781440000,-500.0,0.00013698,2]
[424351227,1780781440000,-500.0,0.00013698,2]
[424351257,1780781440000,-225.09,0.00013699,2]
[424351315,1780781440000,-337.3653641,0.00013942,2]
[424351259,1780781440000,-156.31,0.00013699,2]
[424351284,1780781440000,-150.0,0.00013787,2]
[424351288,1780781440000,-150.0,0.00013807,2]
[424351287,1780781440000,-337.3653641,0.00013806,2]
[424351290,1780781440000,-337.3653641,0.00013821,2]
[424351292,1780781440000,-166.66,0.00013836,2]
[424351297,1780781440000,-150.0,0.00013856,2]
[424351299,1780781440000,-150.0,0.00013862,2]
[424351308,1780781440000,-155.09,0.00013901,2]
[424351309,1780781440000,-150.0,0.00013905,2]
[424351301,1780781440000,-150.0,0.00013879,2]
[424351302,1780781440000,-150.0,0.00013881,2]
[424351307,1780781440000,-217.5231807,0.000139,2]
[424351303,1780781440000,-337.3653641,0.00013881,2]
[424351305,1780781440000,-337.3653641,0.00013896,2]
[424351300,1780781440000,-337.3653641,0.00013866,2]
[424351304,1780781440000,-150.0,0.00013887,2]
[424351298,1780781440000,-150.0,0.00013862,2]
[424351306,1780781440000,-1500.0,0.000139,5]
[424351311,1780781440000,-337.3653641,0.00013912,2]
[424351310,1780781440000,-150.0,0.00013911,2]
[424351319,1780781440000,-337.3653641,0.00013957,2]
[424351320,1780781440000,-337.3653641,0.00013972,2]
[424351312,1780781440000,-337.3653641,0.00013927,2]
[424351321,1780781440000,-166.66,0.00013973,2]
[424351314,1780781440000,-150.0,0.00013937,2]
[424351313,1780781440000,-150.0,0.0001393,2]
[424351316,1780781440000,-150.0,0.00013944,2]
[424351255,1780781440000,-2500.0,0.00013699,2]
[424351318,1780781440000,-150.0,0.00013956,2]
[424351289,1780781440000,-150.0,0.00013813,2]
[424351291,1780781440000,-150.0,0.00013832,2]
[424351317,1780781440000,-150.0,0.00013954,2]
[424351296,1780781440000,-337.3653641,0.00013851,2]
[424351261,1780781440000,-337.3653641,0.000137,2]
[424351262,1780781440000,-150.0,0.000137,2]
[424351258,1780781440000,-187.57,0.00013699,2]
[424351263,1780781440000,-150.0,0.000137,2]
[424351264,1780781440000,-278.0328432,0.000137,2]
[424351260,1780781440000,-781.58,0.00013699,2]
[424351265,1780781440000,-163.59,0.000137,2]
[424351266,1780781440000,-150.0,0.00013709,2]
[424351286,1780781440000,-337.3653641,0.0001379,2]
[424351268,1780781440000,-150.0,0.00013716,2]
[424351270,1780781440000,-337.3653641,0.0001373,2]
[424351269,1780781440000,-166.7,0.0001372,2]
[424351271,1780781440000,-150.0,0.00013733,2]
[424351274,1780781440000,-337.3653641,0.00013745,2]
[424351267,1780781440000,-337.3653641,0.00013715,2]
[424351276,1780781440000,-166.66,0.00013752,2]
[424351294,1780781440000,-150.0,0.00013837,2]
[424351273,1780781440000,-150.0,0.00013737,2]
[424351295,1780781440000,-150.0,0.00013846,2]
[424351293,1780781440000,-337.3653641,0.00013836,2]
[424351285,1780781440000,-150.0,0.00013787,2]
[424351278,1780781440000,-337.3653641,0.0001376,2]
[424351282,1780781440000,-150.0,0.00013781,2]
[424351272,1780781440000,-150.0,0.00013737,2]
[424351280,1780781440000,-150.0,0.00013769,2]
[424351281,1780781440000,-337.3653641,0.00013775,2]
[424351279,1780781440000,-889.93805498,0.00013765,2]
[424351275,1780781440000,-150.0,0.00013748,2]
[424351277,1780781440000,-150.0,0.00013758,2]
[424351283,1780781440000,-150.0,0.00013782,2]
[424351374,1780781441000,-178.3428295,0.00014192,2]
[424351364,1780781441000,-150.0,0.00014139,2]
[424351362,1780781441000,-150.0,0.00014137,2]
[424351372,1780781441000,-337.3653641,0.00014184,2]
[424351373,1780781441000,-150.0,0.00014187,2]
[424351356,1780781441000,-166.66,0.0001411,2]
[424351363,1780781441000,-337.3653641,0.00014139,2]
[424351354,1780781441000,-337.3653641,0.00014108,2]
[424351353,1780781441000,-150.0,0.00014107,2]
[424351352,1780781441000,-150.0,0.00014102,2]
[424351357,1780781441000,-150.0,0.00014112,2]
[424351371,1780781441000,-150.0,0.00014176,2]
[424351368,1780781441000,-337.3653641,0.00014154,2]
[424351385,1780781441000,-150.0,0.00014237,2]
[424351367,1780781441000,-150.0,0.00014151,2]
[424351370,1780781441000,-150.0,0.00014172,2]
[424351366,1780781441000,-150.0,0.00014143,2]
[424351375,1780781441000,-337.3653641,0.00014199,2]
[424351377,1780781441000,-1537.03591727,0.00014201,2]
[424351378,1780781441000,-150.0,0.00014204,2]
[424351379,1780781441000,-152.0,0.00014213,7]
[424351376,1780781441000,-150.0,0.000142,2]
[424351383,1780781441000,-150.0,0.00014237,2]
[424351382,1780781441000,-337.3653641,0.00014229,2]
[424351380,1780781441000,-337.3653641,0.00014214,2]
[424351381,1780781441000,-150.0,0.00014225,2]
[424351361,1780781441000,-150.0,0.00014126,2]
[424351369,1780781441000,-337.3653641,0.00014169,2]
[424351350,1780781441000,-150.0,0.00014087,2]
[424351337,1780781441000,-337.3653641,0.00014033,2]
[424351348,1780781441000,-337.3653641,0.00014078,2]
[424351387,1780781441000,-150.0,0.00014237,2]
[424351322,1780781441000,-150.0,0.00013976,2]
[424351323,1780781441000,-150.0,0.00013979,2]
[424351325,1780781441000,-15000.38414706,0.00013987,2]
[424351326,1780781441000,-150.0,0.00013987,2]
[424351324,1780781441000,-311.00234302,0.00013987,2]
[424351334,1780781441000,-150.0,0.00014009,2]
[424351327,1780781441000,-150.0,0.00013987,2]
[424351335,1780781441000,-337.3653641,0.00014017,2]
[424351332,1780781441000,-337.3653641,0.00014002,2]
[424351331,1780781441000,-250.0,0.00014,2]
[424351330,1780781441000,-40808.36294502,0.0001399,2]
[424351333,1780781441000,-150.0,0.00014004,2]
[424351351,1780781441000,-337.3653641,0.00014093,2]
[424351328,1780781441000,-337.3653641,0.00013987,2]
[424351347,1780781441000,-150.0,0.00014077,2]
[424351336,1780781441000,-150.0,0.00014028,2]
[424351346,1780781441000,-150.0,0.00014074,2]
[424351345,1780781441000,-337.3653641,0.00014063,2]
[424351344,1780781441000,-150.0,0.00014053,2]
[424351343,1780781441000,-150.0,0.0001405,2]
[424351341,1780781441000,-247.52001284,0.00014049,2]
[424351340,1780781441000,-337.3653641,0.00014048,2]
[424351339,1780781441000,-150.0,0.00014042,2]
[424351342,1780781441000,-889.93805498,0.00014049,2]
[424351338,1780781441000,-150.0,0.00014037,2]
[424351349,1780781441000,-150.0,0.00014087,2]
[424351359,1780781441000,-337.3653641,0.00014123,2]
[424351329,1780781441000,-500.0,0.00013989,2]
[424351384,1780781441000,-150.0,0.00014237,2]
[424351392,1780781441000,-150.0,0.00014249,2]
[424351451,1780781441000,-150.0,0.00014437,2]
[424351423,1780781441000,-750.6564227,0.00014316,2]
[424351420,1780781441000,-2692.7190879,0.00014316,2]
[424351422,1780781441000,-52887.9955031,0.00014316,2]
[424351421,1780781441000,-3107.8828829,0.00014316,2]
[424351424,1780781441000,-6630.929561,0.00014316,2]
[424351426,1780781441000,-150.0,0.00014323,2]
[424351431,1780781441000,-150.0,0.00014337,2]
[424351432,1780781441000,-150.0,0.00014348,2]
[424351435,1780781441000,-337.3653641,0.00014366,2]
[424351436,1780781441000,-150.0,0.00014367,2]
[424351437,1780781441000,-150.0,0.00014372,2]
[424351433,1780781441000,-337.3653641,0.00014351,2]
[424351430,1780781441000,-337.3653641,0.00014335,2]
[424351441,1780781441000,-150.0,0.00014387,2]